bitfinex-derivatives/quotes_SOLF0:USTF0_20250817
["timestamp","ask_amount","ask_price","bid_price","bid_amount"]
[1755469334017,0.03849139,192.31,192.23,2.56]
[1755469334217,2.8,192.3,192.23,2.56]
[1755469334822,2.8,192.3,192.21,2.56]
[1755469335416,2.8,192.3,192.16,2.56]
[1755469335611,2.8,192.26,192.16,2.56]
[1755469336223,2.8,192.32,192.2,2.56]
[1755469336424,0.03961784,192.23,192.2,2.56]
[1755469336822,2.8,192.27,192.2,2.56]
[1755469336823,2.8,192.27,192.2,7.7596]
[1755469337125,0.03625976,192.23,192.2,2.56]
[1755469337915,0.03625976,192.23,192.16,2.56]
[1755469338327,2.87,192.29,192.21,2.56]
[1755469338523,2.87,192.29,192.23,2.56]
[1755469339622,2.87,192.29,192.24,0.03718512]
[1755469340023,349.36,192.38,192.25,2.56]
[1755469340322,2.87,192.36,192.25,2.56]
[1755469340726,2.87,192.36,192.29,0.0373339]
[1755469342224,6.11870003,192.36,192.29,0.0373339]
[1755469342425,3.24870003,192.36,192.29,0.0373339]
[1755469342726,3.24870003,192.32,192.2,2.6]
[1755469342926,2.87,192.31,192.2,2.6]
[1755469343515,3.67286715,192.3,192.2,2.6]
[1755469343717,2.87,192.28,192.2,2.6]
[1755469344017,0.0394166,192.27,192.18,2.6]
[1755469344217,0.0394166,192.27,192.22,2.6]
[1755469344426,2.9094166,192.27,192.22,2.6]
[1755469344626,2.87,192.27,192.22,2.6]
[1755469345024,5.85478884,192.37,192.22,0.52]
[1755469345227,2.87,192.35,192.26,2.56]
[1755469345926,2.87,192.35,192.27,5.1977]
[1755469346128,2.87,192.35,192.28,2.56]
[1755469348426,2.87,192.35,192.28,7.7573]
[1755469348624,2.87,192.35,192.28,2.56]
[1755469348825,2.87,192.35,192.26,2.56]
[1755469350531,2.87,192.35,192.23,2.56]
[1755469351343,3.67386315,192.34,192.23,2.56]
[1755469351634,2.87,192.33,192.23,2.56]
[1755469353338,3.67776445,192.32,192.23,2.56]
[1755469353534,24.73348887,192.39,192.23,2.56]
[1755469353535,2.87,192.31,192.23,2.56]
[1755469356734,2.87,192.31,192.2,2.56]
[1755469356933,3.68221228,192.3,192.2,2.56]
[1755469357244,3.68267028,192.29,192.2,2.56]
[1755469357535,2.87,192.28,192.2,2.56]
[1755469359436,2.87,192.26,192.2,2.56]
[1755469360640,2.87,192.26,192.2,7.7596]
[1755469360842,15.63,192.33,192.2,5.1996]
[1755469361140,2.87,192.24,192.22,2.56]
[1755469361749,2.87,192.32,192.23,2.56]
[1755469362050,2.87,192.3,192.23,2.56]
[1755469362344,2.87,192.28,192.26,2.56]
[1755469364940,2.87,192.34,192.27,2.56]
[1755469365137,3.72481434,192.33,192.23,2.56]
[1755469365340,6.59481434,192.32,192.23,2.56]
[1755469365541,3.72481434,192.31,192.23,2.56]
[1755469365842,3.72481434,192.3,192.23,2.56]
[1755469366038,2.87,192.3,192.26,5.198]
[1755469366245,2.87,192.3,192.28,2.56]
[1755469367841,2.9,192.29,192.28,2.56]
[1755469368650,5.85478884,192.38,192.28,2.56]
[1755469368855,2.9,192.36,192.28,2.56]
[1755469369151,2.9,192.34,192.28,2.56]
[1755469369352,3.72451634,192.33,192.28,2.56]
[1755469369545,2.9,192.31,192.28,2.56]
[1755469369749,2.9,192.29,192.28,2.56]
[1755469370349,5.85478884,192.38,192.28,2.56]
[1755469370350,2.9,192.37,192.28,7.7575]
[1755469370546,6.37892857,192.36,192.28,7.7575]
[1755469370746,6.62516386,192.35,192.28,7.7575]
[1755469370941,2.9,192.33,192.28,7.7575]
[1755469371148,2.9,192.31,192.29,2.56]
[1755469372958,3.72718849,192.3,192.29,2.56]
[1755469373155,3.72718849,192.3,192.29,5.7172]
[1755469373361,2.9,192.38,192.27,2.56]
[1755469373557,3.72777443,192.37,192.27,2.56]
[1755469373866,2.9,192.35,192.27,2.56]
[1755469374065,2.9,192.33,192.27,2.56]
[1755469374266,2.9,192.33,192.28,2.08048467]
[1755469374461,2.9,192.33,192.29,2.56]
[1755469375170,2.9,192.33,192.3,5.1967]
[1755469375364,2.9,192.33,192.31,2.56]
[1755469375563,2.9,192.4,192.28,4.64048467]
[1755469375764,2.9,192.38,192.29,2.56]
[1755469375964,2.9,192.36,192.29,2.56]
[1755469376165,3.72632317,192.35,192.29,2.56]
[1755469376359,2.9,192.33,192.31,7.7566]
[1755469377162,2.9,192.41,192.31,7.7566]
[1755469377364,2.9,192.39,192.31,2.56]
[1755469377668,2.9,192.37,192.31,2.56]
[1755469377867,2.9,192.35,192.31,2.56]
[1755469378172,2.9,192.32,192.31,2.56]
[1755469379875,2.9,192.41,192.28,5.1973]
[1755469380065,2.9,192.39,192.28,7.7573]
[1755469380265,2.9,192.37,192.28,7.7573]
[1755469380570,2.9,192.35,192.25,2.56]
[1755469380770,2.9,192.35,192.23,2.08048467]
[1755469380771,2.9,192.33,192.23,4.64048467]
[1755469380972,2.9,192.31,192.23,2.56]
[1755469381274,2.9,192.29,192.23,2.56]
[1755469381772,2.9,192.26,192.24,2.56]
[1755469381981,2.9,192.25,192.24,2.56]
[1755469382670,2.9,192.29,192.2,349.38]
[1755469382972,2.9,192.29,192.19,2.56]
[1755469382973,2.9,192.27,192.19,2.56]
[1755469383166,2.9,192.25,192.19,2.56]
[1755469383373,3.72726391,192.24,192.17,7.7603]
[1755469383572,6.62726391,192.23,192.17,7.7603]
[1755469383775,2.9,192.26,192.17,2.56]
[1755469383973,2.9,192.24,192.17,2.56]
[1755469384268,2.9,192.22,192.18,2.56]
[1755469384473,2.9,192.28,192.18,2.56]
[1755469384672,2.9,192.26,192.18,2.56]
[1755469384974,2.9,192.24,192.18,2.56]
[1755469385274,2.9,192.21,192.19,2.56]
[1755469385666,5.85478884,192.3,192.2,2.56]
[1755469385861,3.72477165,192.29,192.2,2.56]
[1755469386068,3.72477165,192.28,192.18,2.56]
[1755469386372,2.9,192.26,192.16,2.56]
[1755469386574,2.9,192.24,192.16,2.56]
[1755469386764,5.85478884,192.32,192.2,5.1996]
[1755469386965,2.9,192.23,192.21,2.56]
[1755469387871,2.9,192.31,192.21,2.56]
[1755469388074,2.9,192.29,192.19,2.56]
[1755469388366,2.9,192.27,192.19,2.56]
[1755469388671,2.9,192.25,192.19,7.7598]
[1755469388872,3.72338015,192.24,192.19,7.7598]
[1755469389173,2.9,192.25,192.19,2.56]
[1755469389472,2.9,192.22,192.19,2.56]
[1755469389674,2.9,192.3,192.17,2.56]
[1755469389865,3.73977676,192.29,192.17,2.56]
[1755469390064,2.9,192.27,192.17,2.56]
[1755469390370,2.9,192.25,192.17,2.56]
[1755469390572,2.9,192.22,192.19,2.56]
[1755469390871,2.9,192.21,192.19,2.56]
[1755469391069,2.9,192.2,192.18,2.56]
[1755469391473,5.85478884,192.3,192.18,2.56]
[1755469391662,2.9,192.28,192.18,2.56]
[1755469391866,2.9,192.26,192.18,2.56]
[1755469392067,2.9,192.24,192.18,2.56]
[1755469392372,2.9,192.21,192.18,2.56]
[1755469392572,2.9,192.2,192.17,5.2004]
[1755469392775,2.9,192.2,192.19,2.56]
[1755469392972,5.85478884,192.3,192.14,60.26171746]
[1755469393170,2.9,192.45,192.29,3.24103268]
[1755469393371,2.9,192.41,192.3,136.1]
[1755469393572,1.61070522,192.42,192.3,136.1]
[1755469393874,2.9,192.4,192.37,3.24103268]
[1755469394069,2.9,192.4,192.39,5.1945]
[1755469395163,2.9,192.4,192.37,3.24103268]
[1755469395164,2.9,192.4,192.38,5.1947]
[1755469395477,2.9,192.4,192.37,3.24103268]
[1755469395676,2.9,192.4,192.3,136.1]
[1755469395677,1.04,192.4,192.33,3.24103268]
[1755469395877,2.9,192.39,192.33,3.24103268]
[1755469396072,4.51070522,192.39,192.33,3.24103268]
[1755469396268,2.9,192.39,192.33,3.24103268]
[1755469397879,2.88,192.37,192.33,3.24103268]
[1755469398173,2.65070522,192.38,192.33,3.24103268]
[1755469398174,1.61070522,192.38,192.33,3.24103268]
[1755469398377,2.88,192.36,192.3,5.1969]
[1755469398577,1.61070522,192.36,192.3,5.1969]
[1755469398881,2.88,192.34,192.3,5.1969]
[1755469399077,2.88,192.33,192.3,5.1969]
[1755469399474,18.87103268,192.48,192.31,5.1966]
[1755469399678,2.88,192.34,192.31,5.1966]
[1755469400083,2.88,192.34,192.3,5.1969]
[1755469400377,2.88,192.35,192.29,3.24103268]
[1755469400880,2.88,192.35,192.31,5.1964]
[1755469401380,2.88,192.34,192.31,5.1964]
[1755469402280,2.88,192.33,192.31,5.1964]
[1755469402880,2.88,192.45,192.3,5.1969]
[1755469403178,2.88,192.34,192.29,3.24103268]
[1755469403377,2.88,192.32,192.3,5.1967]
[1755469404276,2.88,192.32,192.29,3.24103268]
[1755469404485,2.88,192.32,192.31,5.1967]
[1755469406179,2.88,192.45,192.29,3.24103268]
[1755469406380,2.88,192.34,192.28,136.3]
[1755469406582,2.88,192.34,192.31,5.1964]
[1755469406880,2.88,192.32,192.31,5.1964]
[1755469407283,15.63,192.47,192.33,5.196]
[1755469407485,1.61070522,192.35,192.33,5.196]
[1755469408885,1.61070522,192.35,192.31,7.9665]
[1755469409082,2.65070522,192.35,192.32,2.77]
[1755469409282,1.04,192.35,192.32,2.77]
[1755469409484,2.88,192.37,192.35,2.77]
[1755469409683,2.88,192.37,192.36,2.77]
[1755469410784,2.88,192.47,192.35,2.07922104]
[1755469410983,1.61070522,192.38,192.35,2.07922104]
[1755469411183,1.61070522,192.38,192.33,7.27532104]
[1755469411483,1.04,192.38,192.33,2.07922104]
[1755469411688,2.88,192.36,192.33,2.07922104]
[1755469411888,4.49070522,192.36,192.33,2.07922104]
[1755469412080,4.49070522,192.36,192.31,10.04582104]
[1755469412081,1.04,192.36,192.31,10.04582104]
[1755469412288,2.88,192.34,192.29,135.36]
[1755469412485,2.88,192.41,192.29,135.36]
[1755469412888,2.88,192.32,192.29,135.36]
[1755469413210,4.49070522,192.33,192.29,135.36]
[1755469413382,2.88,192.37,192.32,2.77]
[1755469413583,1.61070522,192.36,192.35,2.07922104]
[1755469413878,4.49070522,192.36,192.32,2.77]
[1755469414083,1.04,192.36,192.34,2.07922104]
[1755469414288,2.88,192.35,192.31,3.23491021]
[1755469414485,2.88,192.35,192.33,2.77]
[1755469415291,2.88,192.35,192.34,2.77]
[1755469415590,2.88,192.35,192.32,2.77]
[1755469415788,2.88,192.35,192.33,2.77]
[1755469416487,2.88,192.35,192.34,2.77]
[1755469416692,2.88,192.37,192.34,2.77]
[1755469416989,4.49070522,192.37,192.35,2.77]
[1755469417185,2.88,192.41,192.31,3.23491021]
[1755469417394,2.88,192.41,192.36,2.77]
[1755469417590,2.88,192.39,192.37,2.77]
[1755469418092,3.92,192.39,192.37,2.77]
[1755469423194,3.92,192.39,192.38,2.77]
[1755469423793,2.88,192.41,192.39,2.77]
[1755469423993,4.49070522,192.41,192.39,2.77]
[1755469424192,2.88,192.51,192.4,2.77]
[1755469424395,4.49070522,192.44,192.4,2.77]
[1755469424795,2.88,192.44,192.4,2.77]
[1755469424994,3.23491021,192.53,192.35,3.23491021]
[1755469425200,2.88,192.42,192.41,2.77]
[1755469426297,2.88,192.51,192.38,2.77]
[1755469426499,2.88,192.43,192.35,6.00491021]
[1755469426697,1.61070522,192.41,192.35,2.77]
[1755469427000,1.61070522,192.39,192.35,2.77]
[1755469427192,3.23491021,192.49,192.35,2.77]
[1755469427396,2.88,192.36,192.35,2.77]
[1755469427695,2.88,192.38,192.33,2.77]
[1755469427998,1.61070522,192.37,192.33,2.77]
[1755469428202,4.40070522,192.37,192.32,2.88]
[1755469428395,2.79,192.37,192.32,2.88]
[1755469428600,3.23491021,192.49,192.32,2.88]
[1755469428796,2.79,192.36,192.32,2.88]
[1755469428997,4.40070522,192.37,192.34,2.88]
[1755469429201,2.79,192.37,192.35,2.88]
[1755469429402,3.83,192.37,192.35,2.88]
[1755469429901,2.79,192.36,192.35,2.88]
[1755469430101,2.79,192.36,192.31,3.23491021]
[1755469430301,2.79,192.36,192.34,2.88]
[1755469430505,2.79,192.48,192.32,2.88]
[1755469430804,2.79,192.47,192.32,2.88]
[1755469430994,1.04,192.48,192.32,2.88]
[1755469430995,2.79,192.36,192.32,2.88]
[1755469431195,2.79,192.35,192.33,2.88]
[1755469431495,1.04,192.37,192.32,5.1963]
[1755469431695,1.04,192.37,192.34,2.88]
[1755469431900,2.79,192.35,192.34,2.88]
[1755469435804,2.79,192.35,192.34,8.0759]
[1755469436601,2.79,192.35,192.34,2.88]
[1755469437309,2.79,192.35,192.34,5.1959]
[1755469437902,2.79,192.35,192.33,5.1961]
[1755469438102,2.79,192.34,192.33,8.0761]
[1755469439202,2.79,192.34,192.33,2.88]
[1755469439710,2.79,192.34,192.32,7.2761076]
[1755469440008,2.0798076,192.42,192.3,8.0767]
[1755469440209,2.79,192.32,192.3,8.0767]
[1755469440409,1.61070522,192.34,192.29,7.2769076]
[1755469440602,2.79,192.33,192.28,134.6]
[1755469440803,2.79,192.31,192.29,2.88]
[1755469441305,2.79,192.41,192.29,2.88]
[1755469441508,2.79,192.39,192.32,2.88]
[1755469441812,1.61070522,192.35,192.32,5.1962]
[1755469442003,4.40070522,192.35,192.32,2.88]
[1755469442204,4.40070522,192.35,192.33,2.88]
[1755469442906,2.79,192.34,192.33,8.0761]
[1755469444510,2.79,192.34,192.33,5.1961]
[1755469446414,2.79,192.34,192.33,8.0761]
[1755469446718,2.79,192.34,192.33,5.1961]
[1755469448608,2.79,192.45,192.32,2.88]
[1755469448804,1.61070522,192.37,192.36,2.0798076]
[1755469449019,4.40070522,192.37,192.36,2.0798076]
[1755469449215,1.61070522,192.37,192.36,4.9598076]
[1755469449416,4.40070522,192.37,192.36,4.9598076]
[1755469450213,4.40070522,192.37,192.36,2.0798076]
[1755469450816,4.40070522,192.37,192.36,7.2751076]
[1755469451417,2.79,192.47,192.36,7.2751076]
[1755469451619,2.79,192.37,192.36,10.1551076]
[1755469451814,2.79,192.37,192.29,5.72715241]
[1755469451815,2.79,192.37,192.34,2.0798076]
[1755469452012,2.65070522,192.37,192.31,2.0798076]
[1755469452214,4.40070522,192.35,192.31,4.9598076]
[1755469452517,2.79,192.34,192.32,5.1963]
[1755469453013,2.79,192.34,192.31,4.9598076]
[1755469453014,2.79,192.34,192.31,5.1966]
[1755469453214,1.04,192.34,192.31,5.1966]
[1755469453518,1.04,192.34,192.3,138.7398076]
[1755469453519,2.79,192.32,192.3,135.8598076]
[1755469453712,1.61070522,192.32,192.3,135.8598076]
[1755469453905,2.79,192.31,192.3,135.8598076]
[1755469456319,3.83,192.31,192.3,133.78]
[1755469458921,3.83,192.31,192.28,5.1974]
[1755469459121,2.76,192.3,192.28,7.2772076]
[1755469459323,2.76,192.29,192.28,10.0872076]
[1755469460516,2.0798076,192.4,192.29,5.1971]
[1755469460720,2.76,192.3,192.29,8.0071]
[1755469461922,2.76,192.41,192.29,2.81]
[1755469462122,2.76,192.42,192.32,4.8898076]
[1755469462318,1.61070522,192.34,192.32,4.8898076]
[1755469462517,2.76,192.33,192.32,4.8898076]
[1755469463224,2.76,192.33,192.32,2.0798076]
[1755469464824,2.76,192.33,192.32,4.8898076]
[1755469465022,2.76,192.33,192.32,2.0798076]
[1755469466022,2.76,192.32,192.27,2.81]
[1755469466324,1.61070522,192.3,192.27,4.8898076]
[1755469466516,2.76,192.28,192.27,4.8898076]
[1755469467121,2.76,192.41,192.27,10.0876076]
[1755469467320,4.37070522,192.3,192.28,2.81]
[1755469467824,3.8,192.3,192.29,2.81]
[1755469468125,2.76,192.32,192.28,2.81]
[1755469468321,4.37070522,192.32,192.3,2.0798076]
[1755469468525,2.76,192.32,192.3,4.8898076]
[1755469468727,1.04,192.32,192.3,10.0867076]
[1755469468926,2.76,192.31,192.3,4.8898076]
[1755469469122,2.76,192.31,192.3,2.0798076]
[1755469469719,2.76,192.31,192.27,2.0798076]
[1755469470326,1.61070522,192.3,192.27,4.8898076]
[1755469470720,2.76,192.28,192.27,4.8898076]
[1755469472230,2.76,192.28,192.27,2.0798076]
[1755469473821,5.41070522,192.28,192.25,132.82]
[1755469474026,2.76,192.27,192.25,132.82]
[1755469474519,2.76,192.26,192.25,132.82]
[1755469475420,2.76,192.26,192.25,135.63]
[1755469476525,2.0798076,192.39,192.25,140.8283]
[1755469476727,1.61070522,192.28,192.27,2.0798076]
[1755469476922,1.61070522,192.28,192.27,4.8898076]
[1755469478623,4.37070522,192.28,192.27,4.8898076]
[1755469478931,17.7098076,192.41,192.27,4.8898076]
[1755469479133,1.61070522,192.29,192.28,2.81]
[1755469479430,4.37070522,192.3,192.29,2.81]
[1755469479833,2.76,192.3,192.29,2.81]
[1755469483729,2.76,192.3,192.29,8.0072]
[1755469483928,2.0798076,192.42,192.3,2.81]
[1755469484129,1.61070522,192.31,192.3,4.8898076]
[1755469484535,2.0798076,192.42,192.3,4.8898076]
[1755469484834,1.61070522,192.31,192.3,4.8898076]
[1755469485027,1.61070522,192.32,192.31,2.81]
[1755469485328,1.61070522,192.34,192.31,2.81]
[1755469485633,1.61070522,192.34,192.33,4.8898076]
[1755469485828,1.04,192.34,192.33,10.0859076]
[1755469486532,2.76,192.38,192.33,7.2759076]
[1755469486726,2.76,192.39,192.36,2.0798076]
[1755469486933,1.61070522,192.38,192.36,2.0798076]
[1755469487123,1.04,192.38,192.36,2.0798076]
[1755469487323,1.04,192.38,192.36,7.2749076]
[1755469487527,2.65070522,192.38,192.37,2.81]
[1755469487723,5.57070522,192.38,192.37,2.81]
[1755469489930,5.57070522,192.38,192.36,2.0798076]
[1755469489931,2.65070522,192.38,192.36,2.0798076]
[1755469490136,2.92,192.37,192.36,4.8498076]
[1755469499542,1.04,192.38,192.36,4.8498076]
[1755469499745,5.57070522,192.38,192.37,2.77]
[1755469500232,2.65070522,192.38,192.37,2.77]
[1755469500443,2.92,192.43,192.37,2.77]
[1755469500649,1.61070522,192.39,192.38,2.0798076]
[1755469500947,1.61070522,192.39,192.38,4.8498076]
[1755469501145,1.04,192.39,192.38,4.8498076]
[1755469501545,2.92,192.38,192.36,2.77]
[1755469501742,2.92,192.37,192.36,2.77]
[1755469504652,2.92,192.39,192.36,2.77]
[1755469504852,4.53070522,192.38,192.37,2.77]
[1755469505256,2.92,192.38,192.37,2.77]
[1755469506955,2.92,192.44,192.38,2.77]
[1755469507254,1.61070522,192.39,192.38,2.77]
[1755469507442,2.92,192.42,192.39,5.1945]
[1755469507647,2.92,192.44,192.4,2.77]
[1755469507848,1.61070522,192.42,192.4,2.77]
[1755469508351,2.92,192.51,192.42,2.77]
[1755469508553,2.92,192.48,192.45,2.0798076]
[1755469508755,1.61070522,192.49,192.46,7.9625]
[1755469508952,1.04,192.5,192.47,2.77]
[1755469509144,1.61070522,192.49,192.47,2.77]
[1755469509351,8.122,192.56,192.49,2.77]
[1755469509550,4.53070522,192.53,192.49,2.77]
[1755469510052,2.92,192.52,192.49,2.77]
[1755469511654,1.04,192.53,192.49,2.77]
[1755469511850,5.57070522,192.53,192.49,2.77]
[1755469512158,0.90427191,192.6,192.49,2.77]
[1755469512159,4.53070522,192.52,192.49,2.77]
[1755469512357,1.61070522,192.52,192.49,2.77]
[1755469512558,4.53070522,192.52,192.5,2.77]
[1755469512749,4.53070522,192.52,192.48,7.2719076]
[1755469512750,1.61070522,192.52,192.51,2.77]
[1755469512950,2.65070522,192.52,192.51,2.77]
[1755469513455,5.57070522,192.52,192.51,2.77]
[1755469515156,2.92,192.5,192.48,4.8498076]
[1755469515351,1.04,192.51,192.48,4.8498076]
[1755469515551,4.53070522,192.5,192.48,4.8498076]
[1755469516262,4.53070522,192.5,192.49,2.77]
[1755469516564,1.61070522,192.5,192.49,2.77]
[1755469517263,2.92,192.51,192.5,2.77]
[1755469517860,4.53070522,192.51,192.5,2.77]
[1755469519056,4.53070522,192.51,192.41,131.38]
[1755469519057,2.91,192.5,192.41,131.38]
[1755469519263,2.91,192.48,192.46,4.9998076]
[1755469519467,2.91,192.47,192.46,4.9998076]
[1755469520263,2.91,192.49,192.46,4.9998076]
[1755469520461,4.52070522,192.48,192.47,2.92]
[1755469521268,2.91,192.47,192.44,2.92]
[1755469521467,4.52070522,192.45,192.44,2.92]
[1755469521858,1.61070522,192.45,192.42,2.0798076]
[1755469522166,3.95,192.44,192.41,2.0798076]
[1755469522368,2.91,192.51,192.39,2.92]
[1755469522570,1.61070522,192.41,192.39,2.92]
[1755469522767,2.91,192.4,192.39,2.92]
[1755469523070,4.52070522,192.4,192.35,2.0798076]
[1755469523364,1.04,192.39,192.37,2.92]
[1755469523570,2.0798076,192.49,192.37,2.92]
[1755469523571,1.61070522,192.38,192.37,2.92]
[1755469524073,4.52070522,192.38,192.37,2.92]
[1755469525270,1.61070522,192.38,192.35,2.0798076]
[1755469525466,2.65070522,192.38,192.36,2.92]
[1755469528380,2.65070522,192.38,192.37,2.92]
[1755469529082,2.91,192.5,192.37,2.92]
[1755469529379,2.91,192.46,192.43,2.92]
[1755469529683,1.61070522,192.44,192.43,2.92]
[1755469530186,2.91,192.47,192.43,2.92]
[1755469530377,2.91,192.49,192.43,2.92]
[1755469530575,1.61070522,192.46,192.43,2.92]
[1755469530976,1.04,192.46,192.45,4.9998076]
[1755469531679,2.0798076,192.58,192.46,2.92]
[1755469531880,2.91,192.56,192.46,2.92]
[1755469532082,1.04,192.57,192.48,4.9998076]
[1755469532083,1.61070522,192.49,192.48,4.9998076]
[1755469532285,1.61070522,192.49,192.48,10.1918076]
[1755469532583,2.91,192.52,192.5,2.92]
[1755469532771,1.04,192.51,192.5,2.92]
[1755469532978,2.65070522,192.51,192.5,2.92]
[1755469533373,5.56070522,192.51,192.5,2.92]
[1755469534986,2.65070522,192.51,192.48,2.0798076]
[1755469535186,4.52070522,192.5,192.49,2.92]
[1755469535384,1.61070522,192.5,192.49,2.92]
[1755469536486,1.61070522,192.5,192.48,2.0798076]
[1755469536487,2.91,192.49,192.48,4.9998076]
[1755469536684,2.65070522,192.5,192.48,4.9998076]
[1755469536886,5.56070522,192.5,192.49,2.92]
[1755469537188,2.65070522,192.5,192.49,2.92]
[1755469540688,5.56070522,192.5,192.49,2.92]
[1755469542292,2.91,192.49,192.48,2.92]
[1755469543394,1.04,192.5,192.48,2.92]
[1755469543591,2.65070522,192.5,192.48,2.92]
[1755469544898,1.61070522,192.5,192.48,2.92]
[1755469547192,2.91,192.52,192.48,2.92]
[1755469547491,1.61070522,192.5,192.48,2.92]
[1755469547888,2.65070522,192.5,192.48,3.06]
[1755469548894,5.59070522,192.5,192.48,3.06]
[1755469549488,2.65070522,192.5,192.48,3.06]
[1755469550088,2.65070522,192.5,192.47,7.2721076]
[1755469550089,2.94,192.48,192.47,3.06]
[1755469552695,2.94,192.59,192.47,3.06]
[1755469552886,1.61070522,192.49,192.47,3.06]
[1755469553392,1.61070522,192.49,192.46,5.1925]
[1755469553393,5.59070522,192.49,192.48,3.06]
[1755469553794,2.65070522,192.49,192.46,3.06]
[1755469553994,2.94,192.47,192.44,2.0798076]
[1755469554194,2.94,192.47,192.46,3.06]
[1755469554889,2.0798076,192.57,192.46,3.06]
[1755469555090,4.55070522,192.48,192.47,3.06]
[1755469556496,2.94,192.51,192.47,3.06]
[1755469556691,1.61070522,192.48,192.47,10.3321076]
[1755469557092,2.94,192.51,192.48,3.06]
[1755469557396,1.04,192.5,192.48,3.06]
[1755469557695,1.61070522,192.49,192.48,3.06]
[1755469558685,2.94,192.51,192.48,5.1921]
[1755469558889,2.65070522,192.5,192.49,3.06]
[1755469559101,2.94,192.52,192.49,3.06]
[1755469559291,1.61070522,192.51,192.5,5.1398076]
[1755469559690,2.94,192.52,192.51,3.06]
[1755469559892,3.98,192.52,192.51,3.06]
[1755469560093,5.59070522,192.52,192.51,3.06]
[1755469560793,2.94,192.51,192.48,3.06]
[1755469560998,4.55070522,192.49,192.48,3.06]
[1755469564198,1.61070522,192.49,192.48,3.06]
[1755469564897,4.55070522,192.49,192.48,3.06]
[1755469565300,5.59070522,192.49,192.44,2.0798076]
[1755469565503,2.94,192.46,192.45,3.06]
[1755469565691,2.0798076,192.54,192.42,5.1936]
[1755469565895,2.94,192.45,192.44,3.06]
[1755469566197,4.55070522,192.45,192.44,3.06]
[1755469566398,2.94,192.45,192.44,3.06]
[1755469568796,2.0798076,192.54,192.44,3.06]
[1755469569101,1.61070522,192.45,192.44,3.06]
[1755469569600,2.94,192.46,192.45,3.06]
[1755469570002,4.55070522,192.46,192.45,3.06]
[1755469570204,1.04,192.46,192.45,3.06]
[1755469571602,1.04,192.46,192.45,8.2529]
[1755469572199,1.04,192.46,192.45,3.06]
[1755469573201,1.04,192.46,192.45,8.2529]
[1755469573401,1.04,192.46,192.45,3.06]
[1755469575208,1.04,192.46,192.45,8.2529]
[1755469578212,3.97,192.46,192.45,8.2529]
[1755469579317,3.97,192.46,192.45,3.06]
[1755469579511,2.93,192.44,192.43,2.95]
[1755469579711,2.93,192.44,192.41,2.0798076]
[1755469580015,2.93,192.43,192.42,2.95]
[1755469582220,2.93,192.43,192.42,8.1437]
[1755469583620,2.93,192.48,192.42,2.95]
[1755469583916,1.61070522,192.44,192.42,2.95]
[1755469584117,1.61070522,192.45,192.42,2.95]
[1755469584322,2.93,192.44,192.43,2.95]